{"text_format":"1","workbook":"xlsx","n_sheets":11,"sheets":["Wijzigingen","Opstarten","Meetpunt","Veldformulier","FlessenSchema","Navigatie","Domein","MeetData","Kalibratie","RuweData","ErrorLog"],"not_rendered":{"charts":0,"images":44,"macros":1,"external_links":2,"defined_names":182,"comments":1,"pivot_tables":0},"unopened":[],"bounds":{"document_bytes":16777216,"sheet_cells":100000,"rows_first":2000,"rows_last":500,"rows_between":2000,"halvings":0,"cell_chars":16384,"cell_head_chars":4096},"cells_cut":0,"cells_raw":0,"read":"whole","date_system":"1900"}

{"sheet":"Wijzigingen","index":0,"n_rows":66,"n_cols":6,"rows_kept":66,"cut":false,"hidden":true,"merged":[]}
["NAAM","DATUM","OMSCHRIJVING","VALIDATIE","VRIJGIFTE","BESTAND_NAAM"]
["Maikel","2010-03-23","Het sjabloon is voor de opdrachtgevers in gebruik genomen.","Ja","23-03-2010 SV2010-01"]
["Maikel","2010-11-16","Nieuwe versie van het sjabloon in gebruik genomen","Ja","16-11-2010 WV2010-02"]
["Maikel","2011-04-05","Nieuwe versie van het sjabloon in gebruik genomen","Nee"]
["Maikel","2011-05-11","Gebruikerscode 3; Interne aanpassingen; De velden Bemonsters en Filtratie kunnen met een vinkje voor alle monsters automatisch ingevuld worden met respectievelijk Taken en Ja.\nBij monsters die op Only Field staan hoeft filtratie in veld niet meer ingevuld worden.","Nee"]
["Maikel","2011-05-13","ButPrintVeld: Wanneer allen MO opm heeft gemaakt dan worden deze niet geprint. Dit is hersteld","Nee"]
["Maikel","2011-12-15","Voordat het sjabloon, na aanmaken van swl3, wordt opgeslagen in Verw_Ruwe_data worden alle validaties van het veldformulier verwijderd.\nSoms raakte het excel bestand \"corrupt\", waardoor het script het excel bestand niet kon openen om labnummers in te voeren.","Nee"]
["Maikel","2012-06-05","QMP_KoppelenPakketten en QMP_KoppelenTesten; De selecties zijn aangepast naar aanleiding van een andere registratie van de gegevens. De tabel TESTVERSION_FL is komen te vervallen. De gegevens wat mogelijk is worden nu bijgehouden in tabel WGS_MATRIX_TESTVER. Tevens zijn de views V_TEST_MATRIX en V_TESTPACK_MATRIX komen te vervallen.","Nee"]
["Maikel","2012-08-14","VerwerkRes: Controle toegevoegd of MO bij een opmerking het nivo of test heeft leeggemaakt. Wanneer dit het geval is, dan wordt er geen opmerking geplaatst.","Nee"]
["Maikel","2012-09-18","Automatische Mail Veldgegevens;Knop en bijbehorende form aangemaakt: Wordt gebruikt door monsterontvangst. Hiermee kunnen e-mail adressen worden geselecteerd waar veldgegevens naartoe gemaild moeten worden.","Nee"]
["Maikel","2012-10-18","Sheet Meetpunt; De labels van de tekst bij het instellen van de tijd valt over de optionbuttons heen. Dit is aangepast n.a.v. melding Erik Pander","Nee"]
["Maikel","2013-01-16","CmdBAfgewerkt; Bij het verwijderen van de connecties gaf het een foutmelding. Stukje herschreven","Nee"]
["Maikel","2013-02-05","ContactNaam: Selectie aangepast; er werd geen rekening gehouden met het project voor de selectie van standaard mailadres. Regel toegevoegd; and d.proj_id=e.id","Nee"]
["Maikel","2013-08-13","QMP_KoppelenTesten; Selectie aangepast, koppeling nu via testprofile ipv testversion.\nDe namen (codes) en omschrijvingen kunnen hierdoor verschillen.","Nee"]
["Maikel","2013-08-14","Loklab uitgeschakeld. (Niet in productie gegooid)","Nee"]
["Maikel","2014-01-01","Logo's vervangen. WGS vervangen. Naam monsternemer nu via formulier ipv inputbox, met het idee om een wat vastere format af te dwingen.","Nee"]
["Maikel","2014-01-15","FrmMnstrNemer; Tussenvoegsel toegevoegd voor de achternaam","Nee"]
["Maikel","2014-01-21","QMP_Samplingworklist; Selectie werkte niet goed meer met W7. Is vervangen door sub QMP_SamplingworklistSWL1.","Nee"]
["Maikel","2014-01-24","Het opschonen van swl1 bestanden herschreven.","Nee"]
["Maikel","2014-02-11","FrmMnstrNemer; Stuk herschreven / geoptimaliseerd","Nee"]
["Maikel","2014-03-12","Het max aantal compoorten van 20 naar 40 gezet.","Nee"]
["Maikel","2014-05-09","WijzigingMeetpc: De geselecteerde optionbutton voor de tijd vast of actueel is afhankelijk gemaakt van de samplingtype. Indien optionbutton automatisch is aangepast dan wordt deze oranje","Nee"]
["Maikel","2014-06-25","FrmWijzNaam aangemaakt; Formulier voor het makkelijk wijzigen van de naam van de monsternemer.","Nee"]
["Maikel","2014-07-02","VerwerkRes: Bij opmerkingen gemaakt door MO bij niet veld testen werd de test id niet opgehaald. Dit is aangepast.","Nee"]
["Maikel","2014-07-24","WijzigingMeetpc: In de aanpassing van 09-05-2014 is een fout gecreeerd. De Datum-Tijd werd nu niet meer uit de planning gehaald. Dit is hersteld.","Nee"]
["Maikel","2014-07-28","WijzigingMeetpc: Aanvulling op aanpassing van 24-07-2014. Het ging nog weer mis bij monsters met dezlfde monsterpuntcode. Eerst wordt datum goed ingevuld, maar volgens werd de datum bij de controle op \"duplo's\" alsnog overschreven. Toetsing op samplingtype toegevoegd.","Nee"]
["Maikel","2014-07-29","WijzigingMeetpc: Stuk herschreven/anders ingedeeld. Eerdere aanpasingen hadden nog niet alle uitzonderingen voorzien.","Nee"]
["Maikel","2014-10-01","Opmaak van kolommen aangepast. Is ten onrechte functie Bereik voorgezet","Nee"]
["Maikel","2014-10-24","Opstart gedeelte; Instellen van kolom KolTestIdMnstr stond verkeerd ingesteld.","Nee"]
["Maikel","2015-02-11","WijzigingMeetpc: Status 93 toegevoegd; Afdwingen dat getoonde lijst verplicht is.","Nee"]
["Maikel-1","2015-03-05","BevestigingRes: Bij duplo monsters waarbij één van beide een nf monster betreft dan de Monstername Datum en Tijd niet meer leegmaken.\nWijzigingMeetpc: Indien Monstername Datum en Tijd reeds gevuld zijn, dan deze laten staan, ongeacht de Radiobutton Actueel/Vast","Nee"]
["Maikel-2","2015-03-05","WijzigingMeetpc: - Tevens werd er alleen gekeken of de directe buur hetzelfde monster was. Dit is nu in een loop gezet, zodat monsters niet per definitie naast elkaar hoeven staan.","Nee"]
["Maikel-3","2015-03-05","AutoExec: Nieuwe sub aangemaakt PrintBereikVeld. Een default printbereik voor sheet Veldformulier instellen, voor als een gebruiker via Excel print er niet 80 pagina's uitkomen.","Nee"]
["Maikel-1","2015-03-06","WijzigingMeetpc: Voor technologie monsters (2e letter in projectcode=t) wordt de datum en tijd altijd uit de planning gebruikt, ongeacht welke instellingen vast/actueel","Nee"]
["Maikel","2015-03-19","Bemonsteringstype: Letter z van verzamelmonster toegevoegd aan de keuzelijst.","Nee"]
["Maikel","2015-08-05","Domein: Erna toegevoegd aan lijst met namen met dubbelfunctie","Nee"]
["Maikel","2015-11-27","Domein: ttuinstra en ikranenburg  toegevoegd aan lijst met namen met dubbelfunctie","Nee"]
["Maikel","2016-07-12","FrmMnstrNemer: Extra controle op dubbele spaties toegevoegd. Deze wordt automatisch vervangen","Nee"]
["Maikel","2016-10-31","Cbo_Hide_Change: CmdBHelp uitgeschakeld, lijkt niet meer te bestaan ","Nee"]
["Maikel","2016-10-31","Office en Windows versies bijgewerkt.","Nee"]
["Maikel","2016-12-16","De bemonsteringstesten worden nu in het formulier (ont)koppelen voor het ontkoppelen geblokkeerd. Het resultaat bij bemonsteringstesten worden automatisch gevuld en kunnen dan niet meer verwijderd worden.","Nee"]
["Maikel","2017-01-04","InvullenSAMPLE: Toetsing voor het bepalen van het filtratie in het veld is aangepast. Wordt nu met selectie (FiltratieSample) gekeken in QM of van monster NO2 of NOT gevraagd is.","Nee"]
["Maikel","2017-02-23","CmdBAfgewerkt; Bij afsluiten wordt gevraagd of er een nieuw bestand geopend moet worden.\nGebruikerscode 2 en 3","Nee"]
["Maikel","2017-05-08","WijzigingMeetpc: Bij validatielijst status 2 toegevoegd (zelfde functie als 3). Status 93 verwijderd, was nooit geimplementeerd.","Nee"]
["Maikel","2017-05-31","Sheet Veldformulier: Het veld Reden is nu een keuzelijst geworden. De lijst staat op sheet Domein.","Nee"]
["Maikel","2017-06-02","VerwerkRes: Opmaak resultaten van specifieke testen toegevoegd","Nee"]
["Maikel-1","2017-06-02","AutoExec: Opschonen van werklijsten wordt nog 1x per week uitgevoerd.","Nee"]
["Maikel","2017-10-05","Sheet Meetpunt: Het veld Reden is nu een keuzelijst geworden. Kan gebruikt worden bij OnlyField. De lijst staat op sheet Domein.","Nee"]
["Maikel","2017-11-16","PoortUitlezen: Nieuwe WTW meter Multi 3630 IDS toegevoegd.","Nee"]
["Maikel","2018-01-03","Sheet Meetpunt.Change: Berekening van de testen volvatth en afwkg toegevoegd (wodrt gebruikt bij invullen testen/gegevens bij een zuivering)","Nee"]
["Maikel","2018-10-12","Na aanleiding van NCB EJN 03 worden berekende cellen en automatisch gemeten cellen geblokkeerd op sheet Meetpunt.","Nee"]
["Maikel","2018-10-16","Meetpunt.Change: Automatisch selecteren cellen aangepast","Nee"]
["Maikel","2018-12-07","Elise toegevoegd aan dubbelrol","Nee"]
["Maikel","2019-04-10","Probleem met afbeelding meter/electrodes opgelost.\nPlaatsing combobox meetpunt (Cbo_Meetpuntcode) en knop Bevestiging anders opgelost, gekoppeld aan een cel.","Nee"]
["Maikel","2019-05-10","Sheet Meetpunt; Ivm Windows Mobile ActiveX knoppen en Comboboxen omgezet naar Labels en Lijst in cel.","Nee"]
["Maikel","2019-05-16","InlezenVeldformulier: Techniek verwijderen SWL1 bestand gewijzigd. Nieuwe manier verwijderd ook ReadOnly bestand.","Nee"]
["Maikel","2019-05-28","Spellingscontrole wordt verborgen en uitgeschakeld. Wordt niet meer gebruikt door problemen bij Windows devices. Excel loopt vast bij het uitvoeren ervan.","Nee"]
["Maikel","2019-06-20","Meetpunt.Change: Berekening volvatpr toegevoegd (LSVR 4617)","Nee"]
["Maikel","2019-06-25","Meetpunt.Change: Indien resultaat wordt ingevoerd met komma, dan automatisch omzetten naar punt","Nee"]
["Maikel","2019-09-27","Sheet Veldformulier: Knoppen CmdBOpmerking en CmdBAfgewerkt omgezet naar Labels","Nee"]
["Maikel","2019-10-01","De velden Datum/Tijd Eind toegevoegd ivm zogeheten schepdag. Hierdoor zijn regels opgeschoven op sheet Meetpunt en Veldformulier","Nee"]
["Maikel","2019-10-01","WijzigingMeetpc: Bij nafiltratie monsters werd, indien geen tijd in de planning, de tijd toch overschreven bij bijbehorende monster. Dit is hersteld.","Nee"]
["Maikel","2019-10-01","WijzigingMeetpc: Controle van de format datum/tijd herschreven. fcDateCheck en fcTimeCheck toegevoegd","Nee"]
["MB","2019-11-01","WijzigingMeetpc: Bij technologie altijd actuele datum/tijd bij monstername","Nee"]
["MB","2022-03-22","SQL selecties aangepast (Aqua365)","Nee"]
["MB","2022-05-09","Opbouw ODBC verplaatst naar verderop in de code","Nee"]

{"sheet":"Opstarten","index":1,"n_rows":9,"n_cols":12,"rows_kept":9,"cut":false,"hidden":false,"merged":[]}
[]
[null,"Adres gegevens",null,null,"AQUALYSIS waterlaboratorium",null,null,null,null,"Versienr.:",{"$f":"VersieNr","v":5},{"$f":"VersieDatum","v":20230308}]
[null,null,null,null,"Loggerweg 6"]
[null,null,null,null,"8042 PG  Zwolle"]
[]
[]
[null,"Tel. Klantenservice",null,null,"038 - 4259600"]
[null,"E-mail",null,null,"klantenservice@aqualysis.nl"]
[null,"Info",null,null,"www.aqualysis.nl"]

{"sheet":"Meetpunt","index":2,"n_rows":88,"n_cols":28,"rows_kept":88,"cut":false,"hidden":true,"merged":[[49,9,49,11],[49,12,49,14],[49,15,49,17],[47,9,47,11],[47,12,47,14],[47,15,47,17],[48,9,48,11],[48,12,48,14],[48,15,48,17],[44,9,44,11],[44,12,44,14],[44,15,44,17],[45,9,45,11],[45,12,45,14],[45,15,45,17],[46,9,46,11],[46,12,46,14],[46,15,46,17],[41,9,41,11],[41,12,41,14],[41,15,41,17],[42,9,42,11],[42,12,42,14],[42,15,42,17],[43,9,43,11],[43,12,43,14],[43,15,43,17],[38,9,38,11],[38,12,38,14],[38,15,38,17],[39,9,39,11],[39,12,39,14],[39,15,39,17],[40,9,40,11],[40,12,40,14],[40,15,40,17],[35,9,35,11],[35,12,35,14],[35,15,35,17],[36,9,36,11],[36,12,36,14],[36,15,36,17],[37,9,37,11],[37,12,37,14],[37,15,37,17],[32,9,32,11],[32,12,32,14],[32,15,32,17],[33,9,33,11],[33,12,33,14],[33,15,33,17],[34,9,34,11],[34,12,34,14],[34,15,34,17],[25,12,25,14],[8,3,8,6],[26,12,26,14],[30,9,30,11],[30,12,30,14],[30,15,30,17],[31,9,31,11],[31,12,31,14],[31,15,31,17],[26,15,26,17],[27,9,27,11],[27,12,27,14],[27,15,27,17],[28,9,28,11],[28,12,28,14],[28,15,28,17],[29,9,29,11],[29,12,29,14],[29,15,29,17],[11,17,16,17],[0,9,0,14],[11,9,16,9],[11,10,16,10],[11,11,16,11],[11,12,16,12],[11,13,16,13],[49,1,49,2],[36,1,36,2],[46,1,46,2],[37,1,37,2],[38,1,38,2],[39,1,39,2],[40,1,40,2],[43,1,43,2],[48,1,48,2],[42,1,42,2],[45,1,45,2],[6,1,6,2],[18,1,18,2],[28,1,28,2],[20,1,20,2],[21,1,21,2],[8,1,8,2],[6,3,6,6],[9,1,9,2],[10,1,10,2],[11,1,11,2],[27,1,27,2],[80,1,80,2],[80,3,80,7],[76,1,76,2],[76,3,76,7],[77,1,77,2],[77,3,77,7],[78,1,78,2],[78,3,78,7],[16,1,16,2],[29,1,29,2],[31,1,31,2],[47,1,47,2],[44,1,44,2],[32,1,32,2],[33,1,33,2],[34,1,34,2],[35,1,35,2],[11,19,16,19],[73,1,73,2],[73,3,73,7],[74,1,74,2],[74,3,74,7],[75,1,75,2],[75,3,75,7],[70,1,70,2],[70,3,70,7],[41,1,41,2],[30,1,30,2],[21,3,21,7],[23,1,23,2],[24,1,24,2],[25,1,25,2],[26,1,26,2],[23,9,23,11],[23,12,23,14],[23,15,23,17],[24,9,24,11],[24,12,24,14],[24,15,24,17],[25,9,25,11],[17,1,17,2],[11,18,16,18],[82,1,82,2],[82,3,82,7],[83,1,83,2],[83,3,83,7],[81,1,81,2],[81,3,81,7],[71,1,71,2],[71,3,71,7],[72,1,72,2],[72,3,72,7],[67,1,67,2],[67,3,67,7],[68,1,68,2],[68,3,68,7],[69,1,69,2],[69,3,69,7],[64,1,64,2],[64,3,64,7],[65,1,65,2],[25,15,25,17],[26,9,26,11],[79,1,79,2],[79,3,79,7],[11,20,16,20],[84,1,84,2],[84,3,84,7],[11,14,16,14],[10,9,10,22],[11,15,16,15],[11,16,16,16],[88,1,93,7],[65,3,65,7],[66,1,66,2],[66,3,66,7],[61,1,61,2],[61,3,61,7],[62,1,62,2],[62,3,62,7],[63,1,63,2],[63,3,63,7],[56,1,56,7],[59,1,59,2],[59,3,59,7],[60,1,60,2],[60,3,60,7],[11,21,16,21],[11,22,16,22]]}
[null,null,null,"Laboratorium Meetpunt",null,null,null,"Versienr.:",{"$f":"VersieNr","v":5},{"$f":"VersieDatum","v":20230308},null,null,null,null,null,null,null,null,null,null,null,null,null,null,null,"Verbergen",null,"Poort open"]
[null,null,null,null,null,null,null,null,null,null,null,null,null,null,null,null,null,null,null,null,null,null,null,null,null,"Tonen",null,"Nee"]
[null,null,null,"Veldformulier",null,null,{"$f":"IF(WerkopdrNr=\"\",\"\",WerkopdrNr)","v":""}]
[null,null,null,"Route",null,null,{"$f":"IF(RouteNr=\"\",\"\",RouteNr)","v":""}]
[null,null,null,"Plandatum",null,null,{"$f":"IF(PlanDatum=\"\",\"\",PlanDatum)","v":""}]
[]
[null,"Monsternemer",null,{"$f":"IF(MonsternemerCode=\"\",\"\",MonsternemerCode)","v":""}]
[]
[null,"Omschrijving"]
[]
[null,"Meetpuntcode"]
[null,"Route vnr"]
[null,"Bemonsteringstype"]
[null,"Hoedanigheid"]
[]
[null,null,null,"Datum (dd-mm-jjjj)",null,null,"Tijd (hh:mm)"]
[null,"Begin"]
[null,"Eind"]
[null,"Monstername"]
[]
[null,"Bemonsterd"]
[null,"Reden"]
[]
[null,"Code",null,"Resultaten",null,null,"Eenheid","Omschrijving",null,"Ref 1",null,null,"Ref 2",null,null,"Ref 3"]
[null,null,null,null,0]
[null,null,null,null,0]
[null,null,null,null,0]
[null,null,null,null,0]
[null,null,null,null,0]
[null,null,null,null,0]
[null,null,null,null,0]
[null,null,null,null,0]
[null,null,null,null,0]
[null,null,null,null,0]
[null,null,null,null,0]
[null,null,null,null,0]
[null,null,null,null,0]
[null,null,null,null,0]
[null,null,null,null,0]
[null,null,null,null,0]
[null,null,null,null,0]
[null,null,null,null,0]
[null,null,null,null,0]
[null,null,null,null,0]
[null,null,null,null,0]
[null,null,null,null,0]
[null,null,null,null,0]
[null,null,null,null,0]
[null,null,null,null,0]
[null,null,null,null,0]
[]
[]
[]
[]
[]
[null,"Opmerking monster (Op rapport):"]
[]
[]
[null,"Opmerking code (Op rapport):"]
[]
[]
[]
[]
[]
[]
[]
[]
[]
[]
[]
[]
[]
[]
[]
[]
[]
[]
[]
[]
[]
[]
[]
[]
[]
[]
[]
[]
[null,"Extra info meetpunt (Niet op rapport):"]

{"sheet":"Veldformulier","index":3,"n_rows":1001,"n_cols":64,"rows_kept":1001,"cut":false,"hidden":true,"merged":[[44,0,44,1],[45,0,45,1],[51,0,51,1],[50,0,50,1],[36,0,36,1],[41,0,41,1],[42,0,42,1],[3,16,3,18],[4,16,4,18],[13,0,13,1],[28,0,28,1],[16,0,16,1],[23,0,23,1],[17,0,17,1],[24,0,24,1],[25,0,25,1],[15,0,15,1],[31,0,31,1],[14,0,14,1],[60,4,60,16],[37,0,37,1],[38,0,38,1],[39,0,39,1],[43,0,43,1],[53,0,53,1],[46,0,46,1],[47,0,47,1],[48,0,48,1],[52,0,52,1],[54,0,54,1],[49,0,49,1],[40,0,40,1],[32,0,32,1],[0,22,2,22],[33,0,33,1],[34,0,34,1],[35,0,35,1],[29,0,29,1],[9,0,9,1],[27,0,27,1],[10,0,10,1],[11,0,11,1],[18,0,18,1],[19,0,19,1],[21,0,21,1],[22,0,22,1],[12,0,12,1],[0,18,2,18],[30,0,30,1]]}
[null,null,null,null,null,null,"Laboratorium Veldformulier",null,null,null,null,null,"Versienr.:",null,{"$f":"VersieNr","v":5},null,{"$f":"VersieDatum","v":20230308}]
[]
[null,null,null,null,null,null,"Veldformulier",null,null,null,{"$f":"IF(WerkopdrNr=\"\",\"\",WerkopdrNr)","v":""}]
[null,null,null,null,null,null,"Route",null,null,null,{"$f":"IF(RouteNr=\"\",\"\",RouteNr)","v":""}]
[null,null,null,null,null,null,"Plandatum",null,null,null,{"$f":"IF(PlanDatum=\"\",\"\",PlanDatum)","v":""}]
[]
[]
[]
[]
["ID-Nummer"]
["Meetpuntcode"]
["Route vnr"]
["Bemonsteringstype"]
["Hoedanigheid"]
["Datum Begin",null,null,null,null,"00:00:00",null,"00:00:00",null,"00:00:00",null,"00:00:00",null,"00:00:00",null,"00:00:00",null,"00:00:00",null,"00:00:00",null,"00:00:00",null,"00:00:00",null,"00:00:00",null,"00:00:00",null,"00:00:00",null,"00:00:00",null,"00:00:00",null,"00:00:00",null,"00:00:00",null,"00:00:00",null,"00:00:00",null,"00:00:00",null,"00:00:00",null,"00:00:00",null,"00:00:00",null,"00:00:00",null,"00:00:00",null,"00:00:00",null,"00:00:00",null,"00:00:00",null,"00:00:00"]
["Tijd Begin",null,null,null,null,0,null,0,null,0,null,0,null,0,null,0,null,0,null,0,null,0,null,0,null,0,null,0,null,0,null,0,null,0,null,0,null,0,null,0,null,0,null,0,null,0,null,0,null,0,null,0,null,0,null,0,null,0,null,0,null,0]
["Datum Eind",null,null,null,null,"00:00:00",null,"00:00:00",null,"00:00:00",null,"00:00:00",null,"00:00:00",null,"00:00:00",null,"00:00:00",null,"00:00:00",null,"00:00:00",null,"00:00:00",null,"00:00:00",null,"00:00:00",null,"00:00:00",null,"00:00:00",null,"00:00:00",null,"00:00:00",null,"00:00:00",null,"00:00:00",null,"00:00:00",null,"00:00:00",null,"00:00:00",null,"00:00:00",null,"00:00:00",null,"00:00:00",null,"00:00:00",null,"00:00:00",null,"00:00:00",null,"00:00:00",null,"00:00:00",null,0]
["Tijd Eind",null,null,null,null,0,null,0,null,0,null,0,null,0,null,0,null,0,null,0,null,0,null,0,null,0,null,0,null,0,null,0,null,0,null,0,null,0,null,0,null,0,null,0,null,0,null,0,null,0,null,0,null,0,null,0,null,0,null,0,null,0,null,0]
["Datum Monstername"]
["Tijd Monstername"]
[]
["Bemonsterd"]
["Reden",null,null,null,"x",null,"x",null,"x",null,"x",null,"x",null,"x",null,"x",null,"x",null,"x",null,"x",null,"x",null,"x",null,"x",null,"x",null,"x",null,"x",null,"x",null,"x",null,"x",null,"x",null,"x",null,"x",null,"x",null,"x",null,"x",null,"x",null,"x",null,"x",null,"x",null,"x"]
["Monsternemer",null,null,null,"x",null,"x",null,"x",null,"x",null,"x",null,"x",null,"x",null,"x",null,"x",null,"x",null,"x",null,"x",null,"x",null,"x",null,"x",null,"x",null,"x",null,"x",null,"x",null,"x",null,"x",null,"x",null,"x",null,"x",null,"x",null,"x",null,"x",null,"x",null,"x",null,"x"]
["Filtratie in het veld"]
["Matrix"]
[]
[null,null,null,null,null,0,null,0,null,0,null,0,null,0,null,0,null,0,null,0,null,0,null,0,null,0,null,0,null,0,null,0,null,0,null,0,null,0,null,0,null,0,null,0,null,0,null,0,null,0,null,0,null,0,null,0,null,0,null,0,null,0,null,0]
[null,null,null,null,null,0,null,0,null,0,null,0,null,0,null,0,null,0,null,0,null,0,null,0,null,0,null,0,null,0,null,0,null,0,null,0,null,0,null,0,null,0,null,0,null,0,null,0,null,0,null,0,null,0,null,0,null,0,null,0,null,0,null,0]
[null,null,null,null,null,0,null,0,null,0,null,0,null,0,null,0,null,0,null,0,null,0,null,0,null,0,null,0,null,0,null,0,null,0,null,0,null,0,null,0,null,0,null,0,null,0,null,0,null,0,null,0,null,0,null,0,null,0,null,0,null,0,null,0]
[null,null,null,null,null,0,null,0,null,0,null,0,null,0,null,0,null,0,null,0,null,0,null,0,null,0,null,0,null,0,null,0,null,0,null,0,null,0,null,0,null,0,null,0,null,0,null,0,null,0,null,0,null,0,null,0,null,0,null,0,null,0,null,0]
[null,null,null,null,null,0,null,0,null,0,null,0,null,0,null,0,null,0,null,0,null,0,null,0,null,0,null,0,null,0,null,0,null,0,null,0,null,0,null,0,null,0,null,0,null,0,null,0,null,0,null,0,null,0,null,0,null,0,null,0,null,0,null,0]
[null,null,null,null,null,0,null,0,null,0,null,0,null,0,null,0,null,0,null,0,null,0,null,0,null,0,null,0,null,0,null,0,null,0,null,0,null,0,null,0,null,0,null,0,null,0,null,0,null,0,null,0,null,0,null,0,null,0,null,0,null,0,null,0]
[null,null,null,null,null,0,null,0,null,0,null,0,null,0,null,0,null,0,null,0,null,0,null,0,null,0,null,0,null,0,null,0,null,0,null,0,null,0,null,0,null,0,null,0,null,0,null,0,null,0,null,0,null,0,null,0,null,0,null,0,null,0,null,0]
[null,null,null,null,null,0,null,0,null,0,null,0,null,0,null,0,null,0,null,0,null,0,null,0,null,0,null,0,null,0,null,0,null,0,null,0,null,0,null,0,null,0,null,0,null,0,null,0,null,0,null,0,null,0,null,0,null,0,null,0,null,0,null,0]
[null,null,null,null,null,0,null,0,null,0,null,0,null,0,null,0,null,0,null,0,null,0,null,0,null,0,null,0,null,0,null,0,null,0,null,0,null,0,null,0,null,0,null,0,null,0,null,0,null,0,null,0,null,0,null,0,null,0,null,0,null,0,null,0]
[null,null,null,null,null,0,null,0,null,0,null,0,null,0,null,0,null,0,null,0,null,0,null,0,null,0,null,0,null,0,null,0,null,0,null,0,null,0,null,0,null,0,null,0,null,0,null,0,null,0,null,0,null,0,null,0,null,0,null,0,null,0,null,0]
[null,null,null,null,null,0,null,0,null,0,null,0,null,0,null,0,null,0,null,0,null,0,null,0,null,0,null,0,null,0,null,0,null,0,null,0,null,0,null,0,null,0,null,0,null,0,null,0,null,0,null,0,null,0,null,0,null,0,null,0,null,0,null,0]
[null,null,null,null,null,0,null,0,null,0,null,0,null,0,null,0,null,0,null,0,null,0,null,0,null,0,null,0,null,0,null,0,null,0,null,0,null,0,null,0,null,0,null,0,null,0,null,0,null,0,null,0,null,0,null,0,null,0,null,0,null,0,null,0]
[null,null,null,null,null,0,null,0,null,0,null,0,null,0,null,0,null,0,null,0,null,0,null,0,null,0,null,0,null,0,null,0,null,0,null,0,null,0,null,0,null,0,null,0,null,0,null,0,null,0,null,0,null,0,null,0,null,0,null,0,null,0,null,0]
[null,null,null,null,null,0,null,0,null,0,null,0,null,0,null,0,null,0,null,0,null,0,null,0,null,0,null,0,null,0,null,0,null,0,null,0,null,0,null,0,null,0,null,0,null,0,null,0,null,0,null,0,null,0,null,0,null,0,null,0,null,0,null,0]
[null,null,null,null,null,0,null,0,null,0,null,0,null,0,null,0,null,0,null,0,null,0,null,0,null,0,null,0,null,0,null,0,null,0,null,0,null,0,null,0,null,0,null,0,null,0,null,0,null,0,null,0,null,0,null,0,null,0,null,0,null,0,null,0]
[null,null,null,null,null,0,null,0,null,0,null,0,null,0,null,0,null,0,null,0,null,0,null,0,null,0,null,0,null,0,null,0,null,0,null,0,null,0,null,0,null,0,null,0,null,0,null,0,null,0,null,0,null,0,null,0,null,0,null,0,null,0,null,0]
[null,null,null,null,null,0,null,0,null,0,null,0,null,0,null,0,null,0,null,0,null,0,null,0,null,0,null,0,null,0,null,0,null,0,null,0,null,0,null,0,null,0,null,0,null,0,null,0,null,0,null,0,null,0,null,0,null,0,null,0,null,0,null,0]
[null,null,null,null,null,0,null,0,null,0,null,0,null,0,null,0,null,0,null,0,null,0,null,0,null,0,null,0,null,0,null,0,null,0,null,0,null,0,null,0,null,0,null,0,null,0,null,0,null,0,null,0,null,0,null,0,null,0,null,0,null,0,null,0]
[null,null,null,null,null,0,null,0,null,0,null,0,null,0,null,0,null,0,null,0,null,0,null,0,null,0,null,0,null,0,null,0,null,0,null,0,null,0,null,0,null,0,null,0,null,0,null,0,null,0,null,0,null,0,null,0,null,0,null,0,null,0,null,0]
[null,null,null,null,null,0,null,0,null,0,null,0,null,0,null,0,null,0,null,0,null,0,null,0,null,0,null,0,null,0,null,0,null,0,null,0,null,0,null,0,null,0,null,0,null,0,null,0,null,0,null,0,null,0,null,0,null,0,null,0,null,0,null,0]
[null,null,null,null,null,0,null,0,null,0,null,0,null,0,null,0,null,0,null,0,null,0,null,0,null,0,null,0,null,0,null,0,null,0,null,0,null,0,null,0,null,0,null,0,null,0,null,0,null,0,null,0,null,0,null,0,null,0,null,0,null,0,null,0]
[null,null,null,null,null,0,null,0,null,0,null,0,null,0,null,0,null,0,null,0,null,0,null,0,null,0,null,0,null,0,null,0,null,0,null,0,null,0,null,0,null,0,null,0,null,0,null,0,null,0,null,0,null,0,null,0,null,0,null,0,null,0,null,0]
[null,null,null,null,null,0,null,0,null,0,null,0,null,0,null,0,null,0,null,0,null,0,null,0,null,0,null,0,null,0,null,0,null,0,null,0,null,0,null,0,null,0,null,0,null,0,null,0,null,0,null,0,null,0,null,0,null,0,null,0,null,0,null,0]
[null,null,null,null,null,0,null,0,null,0,null,0,null,0,null,0,null,0,null,0,null,0,null,0,null,0,null,0,null,0,null,0,null,0,null,0,null,0,null,0,null,0,null,0,null,0,null,0,null,0,null,0,null,0,null,0,null,0,null,0,null,0,null,0]
[null,null,null,null,null,0,null,0,null,0,null,0,null,0,null,0,null,0,null,0,null,0,null,0,null,0,null,0,null,0,null,0,null,0,null,0,null,0,null,0,null,0,null,0,null,0,null,0,null,0,null,0,null,0,null,0,null,0,null,0,null,0,null,0]
[null,null,null,null,null,0,null,0,null,0,null,0,null,0,null,0,null,0,null,0,null,0,null,0,null,0,null,0,null,0,null,0,null,0,null,0,null,0,null,0,null,0,null,0,null,0,null,0,null,0,null,0,null,0,null,0,null,0,null,0,null,0,null,0]
[]
[]
[]
[]
[]
[]
["Opmerkingen:"]
["Meetpuntcode","Code",null,null,"Opmerking"]
[]
[]
[]
[]
[]
[]
[]
[]
[]
[]
[]
[]
[]
[]
[]
[]
[]
[]
[]
[]
[]
[]
[]
[]
[]
[]
[]
[]
[]
[]
[]
[]
[]
[]
[]
[]
[]
[]
[]
[]
[]
[]
[]
[]
[]
[]
[]
[]
[]
[]
[]
[]
[]
[]
[]
[]
[]
[]
[]
[]
[]
[]
[]
[]
[]
[]
[]
[]
[]
[]
[]
[]
[]
[]
[]
[]
[]
[]
[]
[]
[]
[]
[]
[]
[]
[]
[]
[]
[]
[]
[]
[]
[]
[]
[]
[]
[]
[]
[]
[]
[]
[]
[]
[]
[]
[]
[]
[]
[]
[]
[]
[]
[]
[]
[]
[]
[]
[]
[]
[]
[]
[]
[]
[]
[]
[]
[]
[]
[]
[]
[]
[]
[]
[]
[]
[]
[]
[]
[]
[]
[]
[]
[]
[]
[]
[]
[]
[]
[]
[]
[]
[]
[]
[]
[]
[]
[]
[]
[]
[]
[]
[]
[]
[]
[]
[]
[]
[]
[]
[]
[]
[]
[]
[]
[]
[]
[]
[]
[]
[]
[]
[]
[]
[]
[]
[]
[]
[]
[]
[]
[]
[]
[]
[]
[]
[]
[]
[]
[]
[]
[]
[]
[]
[]
[]
[]
[]
[]
[]
[]
[]
[]
[]
[]
[]
[]
[]
[]
[]
[]
[]
[]
[]
[]
[]
[]
[]
[]
[]
[]
[]
[]
[]
[]
[]
[]
[]
[]
[]
[]
[]
[]
[]
[]
[]
[]
[]
[]
[]
[]
[]
[]
[]
[]
[]
[]
[]
[]
[]
[]
[]
[]
[]
[]
[]
[]
[]
[]
[]
[]
[]
[]
[]
[]
[]
[]
[]
[]
[]
[]
[]
[]
[]
[]
[]
[]
[]
[]
[]
[]
[]
[]
[]
[]
[]
[]
[]
[]
[]
[]
[]
[]
[]
[]
[]
[]
[]
[]
[]
[]
[]
[]
[]
[]
[]
[]
[]
[]
[]
[]
[]
[]
[]
[]
[]
[]
[]
[]
[]
[]
[]
[]
[]
[]
[]
[]
[]
[]
[]
[]
[]
[]
[]
[]
[]
[]
[]
[]
[]
[]
[]
[]
[]
[]
[]
[]
[]
[]
[]
[]
[]
[]
[]
[]
[]
[]
[]
[]
[]
[]
[]
[]
[]
[]
[]
[]
[]
[]
[]
[]
[]
[]
[]
[]
[]
[]
[]
[]
[]
[]
[]
[]
[]
[]
[]
[]
[]
[]
[]
[]
[]
[]
[]
[]
[]
[]
[]
[]
[]
[]
[]
[]
[]
[]
[]
[]
[]
[]
[]
[]
[]
[]
[]
[]
[]
[]
[]
[]
[]
[]
[]
[]
[]
[]
[]
[]
[]
[]
[]
[]
[]
[]
[]
[]
[]
[]
[]
[]
[]
[]
[]
[]
[]
[]
[]
[]
[]
[]
[]
[]
[]
[]
[]
[]
[]
[]
[]
[]
[]
[]
[]
[]
[]
[]
[]
[]
[]
[]
[]
[]
[]
[]
[]
[]
[]
[]
[]
[]
[]
[]
[]
[]
[]
[]
[]
[]
[]
[]
[]
[]
[]
[]
[]
[]
[]
[]
[]
[]
[]
[]
[]
[]
[]
[]
[]
[]
[]
[]
[]
[]
[]
[]
[]
[]
[]
[]
[]
[]
[]
[]
[]
[]
[]
[]
[]
[]
[]
[]
[]
[]
[]
[]
[]
[]
[]
[]
[]
[]
[]
[]
[]
[]
[]
[]
[]
[]
[]
[]
[]
[]
[]
[]
[]
[]
[]
[]
[]
[]
[]
[]
[]
[]
[]
[]
[]
[]
[]
[]
[]
[]
[]
[]
[]
[]
[]
[]
[]
[]
[]
[]
[]
[]
[]
[]
[]
[]
[]
[]
[]
[]
[]
[]
[]
[]
[]
[]
[]
[]
[]
[]
[]
[]
[]
[]
[]
[]
[]
[]
[]
[]
[]
[]
[]
[]
[]
[]
[]
[]
[]
[]
[]
[]
[]
[]
[]
[]
[]
[]
[]
[]
[]
[]
[]
[]
[]
[]
[]
[]
[]
[]
[]
[]
[]
[]
[]
[]
[]
[]
[]
[]
[]
[]
[]
[]
[]
[]
[]
[]
[]
[]
[]
[]
[]
[]
[]
[]
[]
[]
[]
[]
[]
[]
[]
[]
[]
[]
[]
[]
[]
[]
[]
[]
[]
[]
[]
[]
[]
[]
[]
[]
[]
[]
[]
[]
[]
[]
[]
[]
[]
[]
[]
[]
[]
[]
[]
[]
[]
[]
[]
[]
[]
[]
[]
[]
[]
[]
[]
[]
[]
[]
[]
[]
[]
[]
[]
[]
[]
[]
[]
[]
[]
[]
[]
[]
[]
[]
[]
[]
[]
[]
[]
[]
[]
[]
[]
[]
[]
[]
[]
[]
[]
[]
[]
[]
[]
[]
[]
[]
[]
[]
[]
[]
[]
[]
[]
[]
[]
[]
[]
[]
[]
[]
[]
[]
[]
[]
[]
[]
[]
[]
[]
[]
[]
[]
[]
[]
[]
[]
[]
[]
[]
[]
[]
[]
[]
[]
[]
[]
[]
[]
[]
[]
[]
[]
[]
[]
[]
[]
[]
[]
[]
[]
[]
[]
[]
[]
[]
[]
[]
[]
[]
[]
[]
[]
[]
[]
[]
[]
[]
[]
[]
[]
[]
[]
[]
[]
[]
[]
[]
[]
[]
[]
[]
[]
[]
[]
[]
[]
[]
[]
[]
[]
[]
[]
[]
[]
[]
[]
[]
[]
[]
[]
[]
[]
[]
[]
[]
[]
[]
[]
[]
[]
[]
[]
[]
[]
[]
[]
[]
[]
[]
[]
[]
[]
[]
[]
[]
[]
[]
[]
[]
[]
[]
[]
[]
[]
[]
[]
[]
[]
[]
[]
[]
[]
[]
[]
[]
[]
[]
[]
[]
[]
[]
[]
[]
[]
[]
[]
[]
[]
[]
[]
[]
[]
[]
[]
[]
[]
["2011-01-01","00:00:00",null,null,{"$f":"IF(AND(F10=1,E22=\"Taken\",E25=\"\"),1,0)","v":0},null,{"$f":"IF(AND(H10=1,G22=\"Taken\",G25=\"\"),1,0)","v":0},null,{"$f":"IF(AND(J10=1,I22=\"Taken\",I25=\"\"),1,0)","v":0},null,{"$f":"IF(AND(L10=1,K22=\"Taken\",K25=\"\"),1,0)","v":0},null,{"$f":"IF(AND(N10=1,M22=\"Taken\",M25=\"\"),1,0)","v":0},null,{"$f":"IF(AND(P10=1,O22=\"Taken\",O25=\"\"),1,0)","v":0},null,{"$f":"IF(AND(R10=1,Q22=\"Taken\",Q25=\"\"),1,0)","v":0},null,{"$f":"IF(AND(T10=1,S22=\"Taken\",S25=\"\"),1,0)","v":0},null,{"$f":"IF(AND(V10=1,U22=\"Taken\",U25=\"\"),1,0)","v":0},null,{"$f":"IF(AND(X10=1,W22=\"Taken\",W25=\"\"),1,0)","v":0},null,{"$f":"IF(AND(Z10=1,Y22=\"Taken\",Y25=\"\"),1,0)","v":0},null,{"$f":"IF(AND(AB10=1,AA22=\"Taken\",AA25=\"\"),1,0)","v":0},null,{"$f":"IF(AND(AD10=1,AC22=\"Taken\",AC25=\"\"),1,0)","v":0},null,{"$f":"IF(AND(AF10=1,AE22=\"Taken\",AE25=\"\"),1,0)","v":0},null,{"$f":"IF(AND(AH10=1,AG22=\"Taken\",AG25=\"\"),1,0)","v":0},null,{"$f":"IF(AND(AJ10=1,AI22=\"Taken\",AI25=\"\"),1,0)","v":0},null,{"$f":"IF(AND(AL10=1,AK22=\"Taken\",AK25=\"\"),1,0)","v":0},null,{"$f":"IF(AND(AN10=1,AM22=\"Taken\",AM25=\"\"),1,0)","v":0},null,{"$f":"IF(AND(AP10=1,AO22=\"Taken\",AO25=\"\"),1,0)","v":0},null,{"$f":"IF(AND(AR10=1,AQ22=\"Taken\",AQ25=\"\"),1,0)","v":0},null,{"$f":"IF(AND(AT10=1,AS22=\"Taken\",AS25=\"\"),1,0)","v":0},null,{"$f":"IF(AND(AV10=1,AU22=\"Taken\",AU25=\"\"),1,0)","v":0},null,{"$f":"IF(AND(AX10=1,AW22=\"Taken\",AW25=\"\"),1,0)","v":0},null,{"$f":"IF(AND(AZ10=1,AY22=\"Taken\",AY25=\"\"),1,0)","v":0},null,{"$f":"IF(AND(BB10=1,BA22=\"Taken\",BA25=\"\"),1,0)","v":0},null,{"$f":"IF(AND(BD10=1,BC22=\"Taken\",BC25=\"\"),1,0)","v":0},null,{"$f":"IF(AND(BF10=1,BE22=\"Taken\",BE25=\"\"),1,0)","v":0},null,{"$f":"IF(AND(BH10=1,BG22=\"Taken\",BG25=\"\"),1,0)","v":0},null,{"$f":"IF(AND(BJ10=1,BI22=\"Taken\",BI25=\"\"),1,0)","v":0},null,{"$f":"IF(AND(BL10=1,BK22=\"Taken\",BK25=\"\"),1,0)","v":0}]
["2020-01-01","23:59:00"]

{"sheet":"FlessenSchema","index":4,"n_rows":7,"n_cols":13,"rows_kept":7,"cut":false,"hidden":true,"merged":[[6,3,6,7],[0,12,0,14]]}
[null,null,null,"Laboratorium Flessenlijst",null,null,null,null,"Versienr.:",null,null,{"$f":"VersieNr","v":5},{"$f":"VersieDatum","v":20230308}]
[]
[null,null,null,"Veldformulier",null,{"$f":"IF(WerkopdrNr=\"\",\"\",WerkopdrNr)","v":""}]
[null,null,null,"Route",null,{"$f":"IF(RouteNr=\"\",\"\",RouteNr)","v":""}]
[null,null,null,"Plandatum",null,{"$f":"IF(PlanDatum=\"\",\"\",PlanDatum)","v":""}]
[]
[null,"Route vnr","Meetpuntcode","Meetpunt omschrijving"]

{"sheet":"Navigatie","index":5,"n_rows":8,"n_cols":13,"rows_kept":8,"cut":false,"hidden":true,"merged":[[0,10,0,12],[5,8,5,9],[5,10,5,11],[7,3,7,7],[7,12,7,15],[6,8,6,9],[6,10,6,11]]}
[null,null,null,null,"Laboratorium Navigatie",null,null,null,"Versienr.:",{"$f":"VersieNr","v":5},{"$f":"VersieDatum","v":20230308}]
[]
[null,null,null,null,"Veldformulier",null,{"$f":"IF(WerkopdrNr=\"\",\"\",WerkopdrNr)","v":""}]
[null,null,null,null,"Route",null,{"$f":"IF(RouteNr=\"\",\"\",RouteNr)","v":""}]
[null,null,null,null,"Plandatum",null,{"$f":"IF(PlanDatum=\"\",\"\",PlanDatum)","v":""}]
[null,null,null,null,"Navigatie",null,{"$f":"IF(NavNaam=\"\",\"\",NavNaam)","v":""},null,"Meetpunt",null,"Navigatie"]
[null,null,null,null,null,null,null,null,"RD Grid",null,{"$f":"IF(NavSysteem=\"\",\"\",NavSysteem)","v":""}]
[null,"Vnr","Meetpuntcode","Meetpunt omschrijving",null,null,null,null,"x","y",{"$f":"IF(NavXcode=\"\",\"\",NavXcode)","v":""},{"$f":"IF(NavYcode=\"\",\"\",NavYcode)","v":""},"Opmerking"]

{"sheet":"Domein","index":6,"n_rows":70,"n_cols":101,"rows_kept":70,"cut":false,"hidden":true,"merged":[]}
[]
[null,null,null,"Algemene paden lab",null,null,"Aantal decimalen",null,null,null,null,"Versie nr applicatie",null,null,null,null,null,null,null,null,null,null,null,null,null,null,null,null,null,null,null,null,null,null,null,null,null,null,null,null,null,null,null,null,null,null,null,null,null,null,null,null,null,null,null,null,null,null,null,null,null,null,null,null,null,null,null,null,null,null,null,null,null,null,null,null,"Druk"]
["Algemene instellingen",null,null,"VBA-Constante","Padnaam",null,"Veldgegeven","Aantal",null,"ApparaatNr",null,"VersNr","Versie",null,"Mnd_Getal","Mnd_Tekst",null,"Idnr_Dom","Meetp_Dom","RouteVnr_Dom",null,"Meetp_RouteVnr_Dom","Meetp_Route_Dom",null,"Dubbelfunctie",null,"FormID","FormMeetpunt","FormNr","FormUitgevoerd","FormTest_Pakket","FormKoppelen",null,"FormMoID","FormMoMeetpunt",null,"FormOpmNivo","FormOpmOmschr",null,"TestenMnstr",null,"TestIdMnstr",null,"TestPack","TestPackMatrix","TestPackMogelijk",null,"TestProfiles","TestProfilesOmschr","TestProfilesMatrix","TestProfilesMogelijk","TestProfilesMacro",null,"Fles_Nr","Fles_Form","Fles_Route","Fles_Datum",null,"Notecat_Nr","Notecat_Omschr","Opm_Nr","Opm_Omschr",null,"FormMO_Cat","FormMO_CatOmschr","FormMO_StOpm","FormMO_StOmschr",null,"FormMO_ChkOpm","FormMO_ChkNivo",null,"Werklijsten",null,"ID_Filtratie",null,"Temp",null,null,null,"Contact_ID","Contact_Naam","Contact_Def",null,"Temperatuur","druk","(hPa)","(mbar)",null,null,null,null,null,null,null,null,null,null,null,null,null,"Reden afmelding monsters"]
["VersieNr",5,null,"UsersSchijf","F:\\",null,"Dec_PH",2,null,"Veldmeter",null,7,1995,null,"01","Jan",null,null,null,null,null,null,null,null,"rschaarsberg",null,null,null,null,null,"Testen","Ontkoppelen",null,null,null,null,null,null,null,null,null,null,null,null,null,null,null,null,null,null,null,null,null,null,null,null,null,null,null,null,null,null,null,1,null,4,null,null,4,21,null,null,null,null,null,null,null,null,null,null,null,null,null,"°C","970","975","980","985","990","995","1000","1005","1010","1015","1020","1025","1030","1035","1040",null,"Afgekeurd, afwijking >7.5%. Handmonster oké."]
["VersieDatum",20230308,null,"SanSchijf","U:\\",null,"Dec_EGV",1,null,"Secchi-schijf",null,8,1997,null,"02","Feb",null,null,null,null,null,null,null,null,"asmeenk",null,null,null,null,null,"Pakketten","Koppelen",null,null,null,null,null,null,null,null,null,null,null,null,null,null,null,null,null,null,null,null,null,null,null,null,null,null,null,null,null,null,null,6,null,39,null,null,null,null,null,null,null,null,null,null,null,null,null,null,null,null,null,"0","14","14.08","14.15","14.22","14.29","14.37","14.44","14.51","14.58","14.66","14.73","14.8","14.87","14.95","15.02",null,"Afgekeurd, afwijking >7.5%. Handmonster niet oké."]
["RijNrDomein",4,null,"TempDir","C:\\Temp\\SWL\\",null,"Dec_O2_mg",1,null,"Slangenpomp",null,9,2000,null,"03","Maa",null,null,null,null,null,null,null,null,"mbroekgerrits",null,null,null,null,null,null,null,null,null,null,null,null,null,null,null,null,null,null,null,null,null,null,null,null,null,null,null,null,null,null,null,null,null,null,null,null,null,null,21,null,41,null,null,null,null,null,null,null,null,null,null,null,null,null,null,null,null,null,"1","13.61","13.68","13.75","13.82","13.89","13.96","14.03","14.1","14.17","14.24","14.31","14.38","14.46","14.53","14.60",null,"Vervallen i.v.m. effluent."]
["RijNrBegin_Meet",25,null,"Stam_Dig","qma_data\\Stam_Dig\\",null,"Dec_O2_perc",0,null,null,null,10,2002,null,"04","Apr",null,null,null,null,null,null,null,null,"wscholten",null,null,null,null,null,null,null,null,null,null,null,null,null,null,null,null,null,null,null,null,null,null,null,null,null,null,null,null,null,null,null,null,null,null,null,null,null,null,30,null,null,null,null,null,null,null,null,null,null,null,null,null,null,null,null,null,null,null,"2","13.23","13.3","13.37","13.44","13.51","13.58","13.64","13.71","13.78","13.85","13.92","13.99","14.06","14.13","14.19",null,"Vervallen i.v.m. influent."]
["RijNrEind_Meet",50,null,"Verw_DigVeld","Verw_Ruwe_data\\",null,"Dec_Temp",1,null,null,null,11,2003,null,"05","Mei",null,null,null,null,null,null,null,null,"ragterkamp",null,null,null,null,null,null,null,null,null,null,null,null,null,null,null,null,null,null,null,null,null,null,null,null,null,null,null,null,null,null,null,null,null,null,null,null,null,null,null,null,null,null,null,null,null,null,null,null,null,null,null,null,null,null,null,null,null,null,"3","12.87","12.94","13.01","13.07","13.14","13.21","13.27","13.34","13.41","13.48","13.54","13.61","13.68","13.74","13.81",null,"Afgekeurd, temperatuur >8 °C."]
["RijNrID_Meet",10,null,"Verw_swl2","Verw_swl2\\",null,null,null,null,null,null,12,2007,null,"06","Jun",null,null,null,null,null,null,null,null,"adudink",null,null,null,null,null,null,null,null,null,null,null,null,null,null,null,null,null,null,null,null,null,null,null,null,null,null,null,null,null,null,null,null,null,null,null,null,null,null,null,null,null,null,null,null,null,null,null,null,null,null,null,null,null,null,null,null,null,null,"4","12.53","12.6","12.66","12.73","12.79","12.86","12.92","12.99","13.05","13.12","13.18","13.25","13.31","13.38","13.44",null,"Afgekeurd, vat overstroomd."]
["RijNrOpmMonster",57,null,"ExportDir","8-ICT\\Alg\\1-Klant\\Export\\",null,null,null,null,null,null,14,2010,null,"07","Jul",null,null,null,null,null,null,null,null,"eweerdt",null,null,null,null,null,null,null,null,null,null,null,null,null,null,null,null,null,null,null,null,null,null,null,null,null,null,null,null,null,null,null,null,null,null,null,null,null,null,null,null,null,null,null,null,null,null,null,null,null,null,null,null,null,null,null,null,null,null,"5","12.21","12.27","12.33","12.4","12.46","12.52","12.59","12.65","12.71","12.78","12.84","12.90","12.97","13.03","13.09",null,"Afgekeurd, <2500 ml. Handmonster oké."]
["RijNrOpmTest",60,null,"Inleesportaal","qma_data\\Inleesportaal\\",null,null,null,null,null,null,15,2013,null,"08","Aug",null,null,null,null,null,null,null,null,"mscholten",null,null,null,null,null,null,null,null,null,null,null,null,null,null,null,null,null,null,null,null,null,null,null,null,null,null,null,null,null,null,null,null,null,null,null,null,null,null,null,null,null,null,null,null,null,null,null,null,null,null,null,null,null,null,null,null,null,null,"6","11.89","11.96","12.02","12.08","12.14","12.2","12.26","12.33","12.39","12.45","12.51","12.57","12.64","12.70","12.76",null,"Afgekeurd, <2500 ml. Handmonster niet oké."]
["KolTest_Meet",2,null,"LimsExportOld","\\MO\\Verwerkte_Export\\",null,null,null,null,null,null,16,2016,null,"09","Sep",null,null,null,null,null,null,null,null,"fkoksu",null,null,null,null,null,null,null,null,null,null,null,null,null,null,null,null,null,null,null,null,null,null,null,null,null,null,null,null,null,null,null,null,null,null,null,null,null,null,null,null,null,null,null,null,null,null,null,null,null,null,null,null,null,null,null,null,null,null,"7","11.6","11.66","11.72","11.78","11.84","11.9","11.96","12.02","12.08","12.14","12.20","12.26","12.32","12.38","12.44",null,"Afgekeurd, <100 pulsen. Handmonster oké."]
["KolRes_Meet",4,null,"VeldDir","qma_data\\Veldformulier\\",null,null,null,null,null,null,null,null,null,"10","Okt",null,null,null,null,null,null,null,null,"tkoerkamp",null,null,null,null,null,null,null,null,null,null,null,null,null,null,null,null,null,null,null,null,null,null,null,null,null,null,null,null,null,null,null,null,null,null,null,null,null,null,null,null,null,null,null,null,null,null,null,null,null,null,null,null,null,null,null,null,null,null,"8","11.31","11.37","11.43","11.49","11.55","11.61","11.67","11.72","11.78","11.84","11.90","11.96","12.02","12.08","12.14",null,"Afgekeurd, <100 pulsen. Handmonster niet oké."]
["KolEenheid_Meet",7,null,"Verw_swl3","Verw_swl3\\",null,null,null,null,null,null,null,null,null,"11","Nov",null,null,null,null,null,null,null,null,"guulders",null,null,null,null,null,null,null,null,null,null,null,null,null,null,null,null,null,null,null,null,null,null,null,null,null,null,null,null,null,null,null,null,null,null,null,null,null,null,null,null,null,null,null,null,null,null,null,null,null,null,null,null,null,null,null,null,null,null,"9","11.04","11.1","11.16","11.21","11.27","11.33","11.39","11.44","11.50","11.56","11.62","11.67","11.73","11.79","11.85"]
["KolOmschr_Meet",8,null,"PadSWL1MO","7-Alg\\Alg\\MONSTERNEMING\\DigVeldformulier\\SWL1\\",null,null,null,null,null,null,null,null,null,"12","Dec",null,null,null,null,null,null,null,null,"nadoui",null,null,null,null,null,null,null,null,null,null,null,null,null,null,null,null,null,null,null,null,null,null,null,null,null,null,null,null,null,null,null,null,null,null,null,null,null,null,null,null,null,null,null,null,null,null,null,null,null,null,null,null,null,null,null,null,null,null,"10","10.78","10.84","10.89","10.95","11.01","11.06","11.12","11.17","11.23","11.29","11.34","11.40","11.45","11.51","11.57"]
["RijNrInfo_Meet",89,null,"VeldDirDigi","qma_data\\Veldformulier\\DigVeldformulier\\",null,null,null,null,null,null,null,null,null,null,null,null,null,null,null,null,null,null,null,null,null,null,null,null,null,null,null,null,null,null,null,null,null,null,null,null,null,null,null,null,null,null,null,null,null,null,null,null,null,null,null,null,null,null,null,null,null,null,null,null,null,null,null,null,null,null,null,null,null,null,null,null,null,null,null,null,null,null,"11","10.53","10.59","10.64","10.7","10.75","10.81","10.86","10.92","10.97","11.03","11.08","11.14","11.19","11.25","11.30"]
["UitlijningCmdB_Left",9.75,null,"TestDirSWL1","8-ICT\\Bhr\\Software\\1-Klant\\4-TestSWL\\",null,null,null,null,null,null,null,null,null,null,null,null,null,null,null,null,null,null,null,null,null,null,null,null,null,null,null,null,null,null,null,null,null,null,null,null,null,null,null,null,null,null,null,null,null,null,null,null,null,null,null,null,null,null,null,null,null,null,null,null,null,null,null,null,null,null,null,null,null,null,null,null,null,null,null,null,null,null,"12","10.29","10.35","10.4","10.45","10.51","10.56","10.62","10.67","10.72","10.78","10.83","10.88","10.94","10.99","11.05"]
["UitlijningCmdB_Top",null,null,"PadSWLBestand","8-ICT\\Bhr\\Software\\1-Klant\\2-Prod\\",null,null,null,null,null,null,null,null,null,null,null,null,null,null,null,null,null,null,null,null,null,null,null,null,null,null,null,null,null,null,null,null,null,null,null,null,null,null,null,null,null,null,null,null,null,null,null,null,null,null,null,null,null,null,null,null,null,null,null,null,null,null,null,null,null,null,null,null,null,null,null,null,null,null,null,null,null,null,"13","10.06","10.12","10.17","10.22","10.27","10.33","10.38","10.43","10.49","10.54","10.59","10.64","10.70","10.75","10.80"]
["UitlijningCmdB_TopStart",null,null,"PadSettings","8-ICT\\Alg\\1-Klant\\SettingsSWL\\",null,null,null,null,null,null,null,null,null,null,null,null,null,null,null,null,null,null,null,null,null,null,null,null,null,null,null,null,null,null,null,null,null,null,null,null,null,null,null,null,null,null,null,null,null,null,null,null,null,null,null,null,null,null,null,null,null,null,null,null,null,null,null,null,null,null,null,null,null,null,null,null,null,null,null,null,null,null,"14","9.84","9.9","9.95","10","10.05","10.1","10.15","10.21","10.26","10.31","10.36","10.41","10.46","10.51","10.57"]
[null,null,null,null,null,null,null,null,null,null,null,null,null,null,null,null,null,null,null,null,null,null,null,null,null,null,null,null,null,null,null,null,null,null,null,null,null,null,null,null,null,null,null,null,null,null,null,null,null,null,null,null,null,null,null,null,null,null,null,null,null,null,null,null,null,null,null,null,null,null,null,null,null,null,null,null,null,null,null,null,null,null,null,"15","9.63","9.68","9.74","9.79","9.84","9.89","9.94","9.99","10.04","10.09","10.14","10.19","10.24","10.29","10.34"]
["RijnrID_Veld",10,null,null,null,null,null,null,null,null,null,null,null,null,null,null,null,null,null,null,null,null,null,null,null,null,null,null,null,null,null,null,null,null,null,null,null,null,null,null,null,null,null,null,null,null,null,null,null,null,null,null,null,null,null,null,null,null,null,null,null,null,null,null,null,null,null,null,null,null,null,null,null,null,null,null,null,null,null,null,null,null,null,"16","9.43","9.48","9.53","9.58","9.63","9.68","9.73","9.78","9.83","9.88","9.93","9.98","10.02","10.07","10.12"]
["RijNrBegin_Veld",28,null,null,null,null,null,null,null,null,null,null,null,null,null,null,null,null,null,null,null,null,null,null,null,null,null,null,null,null,null,null,null,null,null,null,null,null,null,null,null,null,null,null,null,null,null,null,null,null,null,null,null,null,null,null,null,null,null,null,null,null,null,null,null,null,null,null,null,null,null,null,null,null,null,null,null,null,null,null,null,null,null,"17","9.24","9.29","9.33","9.38","9.43","9.48","9.53","9.58","9.63","9.67","9.72","9.77","9.82","9.87","9.91"]
["RijNrEind_Veld",53,null,null,null,null,null,null,null,null,null,null,null,null,null,null,null,null,null,null,null,null,null,null,null,null,null,null,null,null,null,null,null,null,null,null,null,null,null,null,null,null,null,null,null,null,null,null,null,null,null,null,null,null,null,null,null,null,null,null,null,null,null,null,null,null,null,null,null,null,null,null,null,null,null,null,null,null,null,null,null,null,null,"18","9.05","9.19","9.14","9.19","9.24","9.29","9.33","9.38","9.43","9.48","9.52","9.57","9.62","9.67","9.71"]
["RijNrOpmMonster_Veld",62,null,null,null,null,null,null,null,null,null,null,null,null,null,null,null,null,null,null,null,null,null,null,null,null,null,null,null,null,null,null,null,null,null,null,null,null,null,null,null,null,null,null,null,null,null,null,null,null,null,null,null,null,null,null,null,null,null,null,null,null,null,null,null,null,null,null,null,null,null,null,null,null,null,null,null,null,null,null,null,null,null,"19","8.87","8.91","8.96","9.01","9.05","9.1","9.15","9.19","9.24","9.29","9.33","9.38","9.43","9.47","9.52"]
["KolTest_Veld",3,null,null,null,null,null,null,null,null,null,null,null,null,null,null,null,null,null,null,null,null,null,null,null,null,null,null,null,null,null,null,null,null,null,null,null,null,null,null,null,null,null,null,null,null,null,null,null,null,null,null,null,null,null,null,null,null,null,null,null,null,null,null,null,null,null,null,null,null,null,null,null,null,null,null,null,null,null,null,null,null,null,"20","8.69","8.74","8.78","8.83","8.88","8.92","8.97","9.01","9.06","9.100","9.15","9.20","9.24","9.29","9.33"]
["KolBeginMnstr",5,null,null,null,null,null,null,null,null,null,null,null,null,null,null,null,null,null,null,null,null,null,null,null,null,null,null,null,null,null,null,null,null,null,null,null,null,null,null,null,null,null,null,null,null,null,null,null,null,null,null,null,null,null,null,null,null,null,null,null,null,null,null,null,null,null,null,null,null,null,null,null,null,null,null,null,null,null,null,null,null,null,"21","8.52","8.57","8.61","8.66","8.7","8.75","8.79","8.84","8.88","8.93","8.97","9.02","9.06","9.11","9.15"]
["RijNrKop_Veld",null,null,null,null,null,null,null,null,null,null,null,null,null,null,null,null,null,null,null,null,null,null,null,null,null,null,null,null,null,null,null,null,null,null,null,null,null,null,null,null,null,null,null,null,null,null,null,null,null,null,null,null,null,null,null,null,null,null,null,null,null,null,null,null,null,null,null,null,null,null,null,null,null,null,null,null,null,null,null,null,null,null,"22","8.36","8.41","8.45","8.49","8.54","8.58","8.63","8.67","8.71","8.76","8.80","8.85","8.89","8.93","8.98"]
["RijNrOpmMO",null,null,null,null,null,null,null,null,null,null,null,null,null,null,null,null,null,null,null,null,null,null,null,null,null,null,null,null,null,null,null,null,null,null,null,null,null,null,null,null,null,null,null,null,null,null,null,null,null,null,null,null,null,null,null,null,null,null,null,null,null,null,null,null,null,null,null,null,null,null,null,null,null,null,null,null,null,null,null,null,null,null,"23","8.2","8.25","8.29","8.33","8.38","8.42","8.46","8.51","8.55","8.59","8.64","8.68","8.72","8.77","8.81"]
["RowTesten",null,null,null,null,null,null,null,null,null,null,null,null,null,null,null,null,null,null,null,null,null,null,null,null,null,null,null,null,null,null,null,null,null,null,null,null,null,null,null,null,null,null,null,null,null,null,null,null,null,null,null,null,null,null,null,null,null,null,null,null,null,null,null,null,null,null,null,null,null,null,null,null,null,null,null,null,null,null,null,null,null,null,"24","8.05","8.09","8.13","8.18","8.22","8.26","8.31","8.35","8.39","8.43","8.48","8.52","8.56","8.60","8.65"]
["RowSample",null,null,null,null,null,null,null,null,null,null,null,null,null,null,null,null,null,null,null,null,null,null,null,null,null,null,null,null,null,null,null,null,null,null,null,null,null,null,null,null,null,null,null,null,null,null,null,null,null,null,null,null,null,null,null,null,null,null,null,null,null,null,null,null,null,null,null,null,null,null,null,null,null,null,null,null,null,null,null,null,null,null,"25","7.9","7.94","7.99","8.03","8.07","8.11","8.15","8.19","8.24","8.28","8.32","8.36","8.40","8.45","8.49"]
["RowSampleTest",null,null,null,null,null,null,null,null,null,null,null,null,null,null,null,null,null,null,null,null,null,null,null,null,null,null,null,null,null,null,null,null,null,null,null,null,null,null,null,null,null,null,null,null,null,null,null,null,null,null,null,null,null,null,null,null,null,null,null,null,null,null,null,null,null,null,null,null,null,null,null,null,null,null,null,null,null,null,null,null,null,null,"26","7.76","7.8","7.84","7.88","7.92","7.96","8","8.05","8.09","8.13","8.17","8.21","8.25","8.29","8.33"]
["RowPacktype",null,null,null,null,null,null,null,null,null,null,null,null,null,null,null,null,null,null,null,null,null,null,null,null,null,null,null,null,null,null,null,null,null,null,null,null,null,null,null,null,null,null,null,null,null,null,null,null,null,null,null,null,null,null,null,null,null,null,null,null,null,null,null,null,null,null,null,null,null,null,null,null,null,null,null,null,null,null,null,null,null,null,"27","7.62","7.66","7.7","7.74","7.78","7.82","7.86","7.9","7.94","7.98","8.02","8.06","8.10","8.14","8.18"]
["RowPackage",null,null,null,null,null,null,null,null,null,null,null,null,null,null,null,null,null,null,null,null,null,null,null,null,null,null,null,null,null,null,null,null,null,null,null,null,null,null,null,null,null,null,null,null,null,null,null,null,null,null,null,null,null,null,null,null,null,null,null,null,null,null,null,null,null,null,null,null,null,null,null,null,null,null,null,null,null,null,null,null,null,null,"28","7.48","7.52","7.56","7.6","7.64","7.68","7.72","7.76","7.80","7.84","7.88","7.92","7.96","8.00","8.04"]
["RowNavigatie",null,null,null,null,null,null,null,null,null,null,null,null,null,null,null,null,null,null,null,null,null,null,null,null,null,null,null,null,null,null,null,null,null,null,null,null,null,null,null,null,null,null,null,null,null,null,null,null,null,null,null,null,null,null,null,null,null,null,null,null,null,null,null,null,null,null,null,null,null,null,null,null,null,null,null,null,null,null,null,null,null,null,"29","7.35","7.39","7.43","7.47","7.51","7.55","7.59","7.62","7.66","7.70","7.74","7.78","7.82","7.86","7.90"]
["RowKoppelen",null,null,null,null,null,null,null,null,null,null,null,null,null,null,null,null,null,null,null,null,null,null,null,null,null,null,null,null,null,null,null,null,null,null,null,null,null,null,null,null,null,null,null,null,null,null,null,null,null,null,null,null,null,null,null,null,null,null,null,null,null,null,null,null,null,null,null,null,null,null,null,null,null,null,null,null,null,null,null,null,null,null,"30","7.22","7.26","7.3","7.34","7.38","7.42","7.45","7.49","7.53","7.57","7.61","7.65","7.69","7.72","7.76"]
["RowKalibratie",null,null,null,null,null,null,null,null,null,null,null,null,null,null,null,null,null,null,null,null,null,null,null,null,null,null,null,null,null,null,null,null,null,null,null,null,null,null,null,null,null,null,null,null,null,null,null,null,null,null,null,null,null,null,null,null,null,null,null,null,null,null,null,null,null,null,null,null,null,null,null,null,null,null,null,null,null,null,null,null,null,null,"31","7.1","7.14","7.17","7.21","7.25","7.29","7.33","7.36","7.40","7.44","7.48","7.52","7.55","7.59","7.63"]
["RowOpmMO",null,null,null,null,null,null,null,null,null,null,null,null,null,null,null,null,null,null,null,null,null,null,null,null,null,null,null,null,null,null,null,null,null,null,null,null,null,null,null,null,null,null,null,null,null,null,null,null,null,null,null,null,null,null,null,null,null,null,null,null,null,null,null,null,null,null,null,null,null,null,null,null,null,null,null,null,null,null,null,null,null,null,"32","6.98","7.01","7.05","7.09","7.13","7.16","7.2","7.24","7.28","7.31","7.35","7.39","7.43","7.46","7.50"]
[null,null,null,null,null,null,null,null,null,null,null,null,null,null,null,null,null,null,null,null,null,null,null,null,null,null,null,null,null,null,null,null,null,null,null,null,null,null,null,null,null,null,null,null,null,null,null,null,null,null,null,null,null,null,null,null,null,null,null,null,null,null,null,null,null,null,null,null,null,null,null,null,null,null,null,null,null,null,null,null,null,null,null,"33","6.86","6.9","6.93","6.97","7.01","7.05","7.08","7.12","7.16","7.19","7.23","7.27","7.30","7.34","7.38"]
["RijNrMnstr_Fles",8,null,null,null,null,null,null,null,null,null,null,null,null,null,null,null,null,null,null,null,null,null,null,null,null,null,null,null,null,null,null,null,null,null,null,null,null,null,null,null,null,null,null,null,null,null,null,null,null,null,null,null,null,null,null,null,null,null,null,null,null,null,null,null,null,null,null,null,null,null,null,null,null,null,null,null,null,null,null,null,null,null,"34","6.75","6.78","6.82","6.86","6.89","6.93","6.97","7.12","7.04","7.07","7.11","7.15","7.18","7.22","7.26"]
["KolTest_Fles",9]
["RijNrEindFles"]
["KolNrEindFles"]
["Aantal_Fles_Files"]
[]
["PCNaam"]
["Gebruiker"]
["GebruikersCode"]
["MonsternemerCode"]
["swl_inlezen","ja"]
["Pad_Txt"]
["Naam_Txt"]
["Pad_swl2"]
["WerkopdrNr"]
["RouteNr"]
["PlanDatum"]
["Aantal_Test_Pakket"]
["Separator"]
["ExcelVersie"]
["swl1_Afgewerkt","ja"]
["SaveTijd"]
["SaveDatum"]
["TellingLog",0]
["TellingFrmWijzNaam"]
["WeekNummer",{"$f":"WEEKNUM(TODAY())","v":10}]
[]
["RijNrMnstr_Nav",9]
["NavNaam"]
["NavSysteem"]
["NavXcode"]
["NavYcode"]

{"sheet":"MeetData","index":7,"n_rows":24,"n_cols":8,"rows_kept":24,"cut":false,"hidden":true,"merged":[[7,1,7,2],[7,3,7,5],[11,1,11,2],[11,3,11,5],[12,1,12,2],[12,3,12,5],[9,1,9,2],[9,3,9,5],[10,1,10,2],[10,3,10,5],[19,1,19,2],[20,1,20,2],[13,1,13,2],[14,1,14,2],[15,1,15,2],[16,1,16,2],[17,1,17,2],[18,1,18,2],[23,3,23,4],[23,1,23,2],[22,1,22,4],[24,1,24,2],[24,3,24,4],[25,1,25,2],[26,1,26,2],[27,1,27,2],[28,1,28,2],[25,3,25,4],[26,3,26,4],[27,3,27,4],[28,3,28,4]]}
[null,null,null,"Laboratorium Veldmeter",null,"Versienr.:",{"$f":"VersieNr","v":5},{"$f":"VersieDatum","v":20230308}]
[]
[null,null,null,"Veldformulier",null,{"$f":"IF(WerkopdrNr=\"\",\"\",WerkopdrNr)","v":""}]
[null,null,null,"Route",null,{"$f":"IF(RouteNr=\"\",\"\",RouteNr)","v":""}]
[null,null,null,"Plandatum",null,{"$f":"IF(PlanDatum=\"\",\"\",PlanDatum)","v":""}]
[null,null,null,"Monsternemer",null,{"$f":"IF(MonsternemerCode=\"\",\"\",MonsternemerCode)","v":""}]
[]
[null,"Meetpuntcode"]
[]
[null,"Veldmeter"]
[null,"Serie nr."]
[null,"Datum"]
[null,"Tijd"]
[null,"Veldgegeven",null,"O2","EGV","pH"]
[null,"Resultaat"]
[null,"Eenheid"]
[null,"Temp (°C)"]
[null,"Elektrode"]
[null,"Serie nr."]
[null,"Sensor"]
[null,"Info elektrode"]
[]
[null,"Apparaatnummers"]
[null,"Apparaat",null,"Nummer"]

{"sheet":"Kalibratie","index":8,"n_rows":50,"n_cols":64,"rows_kept":50,"cut":false,"hidden":true,"merged":[[3,11,5,11],[45,57,47,57],[7,10,8,10],[7,11,8,11],[9,7,9,8],[32,4,32,11],[7,7,8,7],[7,8,8,8],[2,10,5,10],[13,1,13,2],[2,7,5,8],[7,1,9,2],[7,4,8,4],[7,5,8,5],[9,4,9,5],[12,1,12,2],[16,1,16,2],[17,1,17,2],[18,1,18,2],[19,1,19,2],[14,1,14,2],[31,1,32,1],[9,10,9,11],[27,4,27,11],[28,4,28,11],[29,4,29,11],[30,4,30,11],[25,1,25,2],[27,1,28,1],[29,1,30,1],[31,4,31,11],[20,1,20,2],[21,1,21,2],[22,1,22,2],[23,1,23,2],[24,1,24,2],[15,1,15,2]]}
[null,null,null,null,"Laboratorium Controle / Kalibratie",null,null,null,"Versienr.:",null,{"$f":"VersieNr&\"  \"&VersieDatum","v":"5  20230308"}]
[]
[null,null,null,null,"Veldformulier",{"$f":"IF(WerkopdrNr=\"\",\"\",WerkopdrNr)","v":""},null,"H",null,null,"O"]
[null,null,null,null,"Route",{"$f":"IF(RouteNr=\"\",\"\",RouteNr)","v":""},null,null,null,null,null,"O"]
[null,null,null,null,"Plandatum",{"$f":"IF(PlanDatum=\"\",\"\",PlanDatum)","v":""}]
[null,null,null,null,"Monsternemer",{"$f":"IF(MonsternemerCode=\"\",\"\",MonsternemerCode)","v":""}]
[]
[null,"H"]
[]
[null,null,null,null,"Zuurgraad (pH)",null,null,"Geleidbaarheid (EGV)",null,null,"Zuurstof (O2)"]
[null,null,null,null,"Controle","Kalibratie",null,"Controle","Kalibratie",null,"Controle","Kalibratie"]
[null,null,null,null,null,"%",null,"mS/m","µS/cm",null,"%","%"]
[null,"Min grens",null,null,7.95,90,null,140,1016,null,98,98]
[null,"Max grens",null,null,8.0500000000000007,102,null,143,1022,null,102,102]
[]
[null,"Datum meting"]
[null,"Tijd meting"]
[null,"Serie nr. meter"]
[null,"Elektrode"]
[null,"Serie nr. elektrode"]
[null,"Extra info"]
[null,"Sensor"]
[null,"Temp  °C"]
[null,"Resultaat"]
[]
[null,"Goedgekeurd"]
[null,"Opmerking:"]
[null,"Zuurgraad","Controle"]
[null,null,"Kalibratie"]
[null,"Geleidbaarheid","Controle"]
[null,null,"Kalibratie"]
[null,"Zuurstof","Controle"]
[null,null,"Kalibratie"]
[]
[]
[]
[]
[]
[]
[]
[]
[]
[]
[null,null,null,null,null,null,null,null,null,null,null,null,null,null,null,null,null,null,null,null,null,null,null,null,null,null,null,null,null,null,null,null,null,null,null,null,null,null,null,null,null,null,null,null,null,null,null,null,null,null,null,null,null,"Laboratorium Controle / Kalibratie  (Ruwe Data)",null,null,null,null,"Versienr.:",null,{"$f":"VersieNr&\"  \"&VersieDatum","v":"5  20230308"}]
[]
[null,null,null,null,null,null,null,null,null,null,null,null,null,null,null,null,null,null,null,null,null,null,null,null,null,null,null,null,null,null,null,null,null,null,null,null,null,null,null,null,null,null,null,null,null,null,null,null,null,null,null,null,null,"Veldformulier",null,{"$f":"IF(WerkopdrNr=\"\",\"\",WerkopdrNr)","v":""},null,"O"]
[null,null,null,null,null,null,null,null,null,null,null,null,null,null,null,null,null,null,null,null,null,null,null,null,null,null,null,null,null,null,null,null,null,null,null,null,null,null,null,null,null,null,null,null,null,null,null,null,null,null,null,null,null,"Route",null,{"$f":"IF(RouteNr=\"\",\"\",RouteNr)","v":""}]
[null,null,null,null,null,null,null,null,null,null,null,null,null,null,null,null,null,null,null,null,null,null,null,null,null,null,null,null,null,null,null,null,null,null,null,null,null,null,null,null,null,null,null,null,null,null,null,null,null,null,null,null,null,"Plandatum",null,{"$f":"IF(PlanDatum=\"\",\"\",PlanDatum)","v":""}]
[null,null,null,null,null,null,null,null,null,null,null,null,null,null,null,null,null,null,null,null,null,null,null,null,null,null,null,null,null,null,null,null,null,null,null,null,null,null,null,null,null,null,null,null,null,null,null,null,null,null,null,null,null,"Monsternemer",null,{"$f":"IF(MonsternemerCode=\"\",\"\",MonsternemerCode)","v":""}]
[null,null,null,null,null,null,null,null,null,null,null,null,null,null,null,null,null,null,null,null,null,null,null,null,null,null,null,null,null,null,null,null,null,null,null,null,null,null,null,null,null,null,null,null,null,null,null,null,null,"Code","Con/Kal","Min","Max","Datum","Tijd","Serie meter","Elektrode","Serie Elek","Extra info","Sensor","Temp","Resultaat","Toetsing","Opmerking"]

{"sheet":"RuweData","index":9,"n_rows":0,"n_cols":0,"rows_kept":0,"cut":false,"hidden":true,"merged":[]}

{"sheet":"ErrorLog","index":10,"n_rows":1,"n_cols":4,"rows_kept":1,"cut":false,"hidden":true,"merged":[]}
["Naam Sub","Error Line","Error Nr","Error Omschrijving"]